fUST/lending_fUST_20251207
["ID","MTS","AMOUNT","RATE_DAILY","PERIOD"]
[396566829,1765053845498,-500.0,6.803e-05,2]
[396566830,1765053845528,-500.0,6.803e-05,2]
[396566831,1765053845558,-500.0,6.803e-05,2]
[396566832,1765053845587,-500.0,6.803e-05,2]
[396566833,1765053845618,-520.27448273,6.803e-05,2]
[396566834,1765053846396,-101.44742878,6.803e-05,2]
[396566835,1765053860696,559.33,6.6e-05,2]
[396566836,1765053862664,-151.98512574,6.8e-05,2]
[396566837,1765053887031,279.81,6.722e-05,2]
[396566838,1765053903381,150.0,6.732e-05,2]
[396566839,1765053917951,-151.05,6.801e-05,2]
[396566840,1765053919435,471.44,6.6e-05,2]
[396566841,1765053923992,-471.44,6.8e-05,2]
[396566842,1765053924019,-148.95,6.801e-05,2]
[396566843,1765053924046,-1200.0,6.801e-05,2]
[396566844,1765053924072,-500.0,6.802e-05,2]
[396566845,1765053924100,-379.36422257,6.802e-05,2]
[396566846,1765053924130,-500.0,6.802e-05,2]
[396566847,1765053924156,-378.56232377,6.802e-05,2]
[396566848,1765053924190,-500.0,6.802e-05,2]
[396566849,1765053924217,-597.27199252,6.802e-05,2]
[396566850,1765053924245,-500.0,6.802e-05,2]
[396566851,1765053924280,-500.0,6.802e-05,2]
[396566852,1765053924311,-500.0,6.802e-05,2]
[396566853,1765053924342,-500.0,6.802e-05,2]
[396566854,1765053924372,-500.0,6.802e-05,2]
[396566855,1765053924404,-500.0,6.802e-05,2]
[396566856,1765053924436,-233.92489246,6.802e-05,2]
[396566857,1765053924469,-500.0,6.802e-05,2]
[396566858,1765053924500,-500.0,6.802e-05,2]
[396566859,1765053924796,-500.0,6.802e-05,2]
[396566860,1765053924828,-500.0,6.802e-05,2]
[396566861,1765053925385,-180.97313736,6.802e-05,2]
[396566862,1765053926163,324.26765719,6.732e-05,2]
[396566863,1765053927032,-238.37,6.802e-05,2]
[396566864,1765053934421,173.21765719,6.734e-05,2]
[396566865,1765053968068,280.06,6.718e-05,2]
[396566866,1765053979986,570.03,6.6e-05,2]
[396566867,1765053985893,202.8712321,6.732e-05,2]
[396566868,1765053987546,-151.05,6.8e-05,2]
[396566869,1765053996810,570.03,6.612e-05,2]
[396566870,1765054022915,-80.65686264,6.802e-05,2]
[396566871,1765054022942,-71.31313736,6.802e-05,2]
[396566872,1765054025056,-190.30017604,6.802e-05,2]
[396566873,1765054025526,1464.36804942,6.075e-05,2]
[396566874,1765054025553,10880.24876588,6.075e-05,2]
[396566875,1765054026656,-217.65729365,6.802e-05,2]
[396566876,1765054031082,-20.72939295,6.802e-05,2]
[396566877,1765054031110,-212.8409009,6.802e-05,2]
[396566878,1765054039511,473.81,6.6e-05,2]
[396566879,1765054045425,-208.0372635,6.734e-05,2]
[396566880,1765054045462,208.0372635,6.667e-05,2]
[396566881,1765054051997,280.32,6.709e-05,2]
[396566882,1765054052857,-299.34064064,6.8e-05,2]
[396566883,1765054053288,191.67,6.732e-05,2]
[396566884,1765054068367,174.46935936,6.732e-05,2]
[396566885,1765054076102,174.46935936,6.732e-05,2]
[396566886,1765054092417,174.46935936,6.665e-05,2]
[396566887,1765054100375,174.46935936,6.665e-05,2]
[396566888,1765054102152,592.27,6.6e-05,2]
[396566889,1765054103688,-174.46935936,6.732e-05,2]
[396566890,1765054103712,-104.74818274,6.8e-05,2]
[396566891,1765054118913,-487.52181726,6.732e-05,2]
[396566892,1765054123217,487.52181726,6.732e-05,2]
[396566893,1765054130122,339.78,6.708e-05,2]
[396566894,1765054131116,487.52181726,6.732e-05,2]
[396566895,1765054143247,-238.37,6.732e-05,2]
[396566896,1765054143357,250.0,0.00013105,3]
[396566897,1765054144356,-192.72826586,6.732e-05,2]
[396566898,1765054158421,792.27,6.6e-05,2]
[396566899,1765054159263,-56.4235514,6.732e-05,2]
[396566900,1765054159287,-182.70901618,6.799e-05,2]
[396566914,1765054172877,-117.29098382,6.799e-05,2]
[396566915,1765054172900,-36.57901618,6.8e-05,2]
[396566916,1765054178487,755.69098382,6.732e-05,2]
[396566917,1765054186731,755.69098382,6.732e-05,2]
[396566918,1765054194824,755.69098382,6.732e-05,2]
[396566919,1765054196429,-229.13565306,6.8e-05,2]
[396566920,1765054198298,-176.85055349,6.8e-05,2]
[396566921,1765054199900,-349.70477727,6.8e-05,2]
[396566922,1765054199923,-124.29773647,6.8e-05,2]
[396566923,1765054202621,349.70477727,6.732e-05,2]
[396566924,1765054202655,-300.0,6.799e-05,2]
[396566925,1765054202678,-27.89807133,6.8e-05,2]
[396566926,1765054210595,1409.0,6.731e-05,2]
[396566927,1765054211715,339.27,6.758e-05,2]
[396566928,1765054218360,1409.0,6.731e-05,2]
[396566929,1765054220024,630.79,6.6e-05,2]
[396566930,1765054226944,1409.0,6.731e-05,2]
[396566931,1765054231918,-209.0,6.799e-05,2]
[396566932,1765054231949,-1200.0,6.799e-05,2]
[396566933,1765054231976,-630.79,6.8e-05,2]
[396566934,1765054232003,-180.57179999,6.8e-05,2]
[396566935,1765054232035,-500.0,6.8e-05,2]
[396566936,1765054232073,-500.0,6.8e-05,2]
[396566940,1765054232104,-500.0,6.8e-05,2]
[396566944,1765054232137,-500.0,6.8e-05,2]
[396566952,1765054232169,-437.9924736,6.8e-05,2]
[396566963,1765054232201,-500.0,6.8e-05,2]
[396566969,1765054232234,-500.0,6.8e-05,2]
[396566973,1765054232266,-500.0,6.8e-05,2]
[396566977,1765054232296,-500.0,6.8e-05,2]
[396566981,1765054232331,-500.0,6.8e-05,2]
[396566985,1765054232363,-500.0,6.8e-05,2]
[396566990,1765054232394,-500.0,6.8e-05,2]
[396566993,1765054232427,-500.0,6.8e-05,2]
[396566997,1765054232457,-500.0,6.8e-05,2]
[396567001,1765054232488,-500.0,6.8e-05,2]
[396567007,1765054232521,-500.0,6.8e-05,2]
[396567010,1765054232552,-500.0,6.8e-05,2]
[396567013,1765054232583,-500.0,6.8e-05,2]
[396567016,1765054232614,-500.0,6.8e-05,2]
[396567020,1765054232642,-483.77606378,6.8e-05,2]
[396567021,1765054232672,-246.04695021,6.8e-05,2]
[396567022,1765054232709,-792.93751563,6.8e-05,2]
[396567023,1765054232743,-792.93751563,6.8e-05,2]
[396567024,1765054232777,-792.93751563,6.8e-05,2]
[396567025,1765054234635,-786.21170635,6.8e-05,2]
[396567026,1765054234644,-786.21170635,6.8e-05,2]
[396567027,1765054234654,-786.21170635,6.8e-05,2]
[396567028,1765054234663,-786.21170635,6.8e-05,2]
[396567029,1765054234675,-786.21170635,6.8e-05,2]
[396567030,1765054234687,-786.21170635,6.8e-05,2]
[396567031,1765054234698,-786.21170635,6.8e-05,2]
[396567032,1765054234707,-501.18678367,6.8e-05,2]
[396567033,1765054234846,-786.21170635,6.8e-05,2]
[396567034,1765054234855,-487.44007469,6.8e-05,2]
[396567035,1765054234867,-298.77163166,6.8e-05,2]
[396567036,1765054234876,-786.21170635,6.8e-05,2]
[396567037,1765054234886,-786.21170635,6.8e-05,2]
[396567038,1765054234895,-574.16640428,6.8e-05,2]
[396567039,1765054234907,-212.04530207,6.8e-05,2]
[396567040,1765054234916,-786.21170635,6.8e-05,2]
[396567041,1765054234926,-786.21170635,6.8e-05,2]
[396567042,1765054234935,-786.21170635,6.8e-05,2]
[396567043,1765054234944,-786.21170635,6.8e-05,2]
[396567044,1765054234953,-500.0,6.802e-05,2]
[396567045,1765054234963,-250.0,6.802e-05,2]
[396567046,1765054234973,-500.0,6.802e-05,2]
[396567047,1765054234982,-500.0,6.802e-05,2]
[396567048,1765054234992,-500.0,6.802e-05,2]
[396567049,1765054235002,-500.0,6.802e-05,2]
[396567050,1765054235011,-500.0,6.802e-05,2]
[396567051,1765054235022,-500.0,6.802e-05,2]
[396567052,1765054235032,-500.0,6.802e-05,2]
[396567053,1765054235042,-250.0,6.802e-05,2]
[396567054,1765054235051,-551.43747706,6.802e-05,2]
[396567055,1765054235060,-500.0,6.802e-05,2]
[396567056,1765054235071,-500.0,6.802e-05,2]
[396567057,1765054235083,-500.0,6.802e-05,2]
[396567058,1765054235092,-250.0,6.802e-05,2]
[396567059,1765054235102,-500.0,6.802e-05,2]
[396567060,1765054235111,-500.0,6.802e-05,2]
[396567061,1765054235121,-500.0,6.802e-05,2]
[396567062,1765054235130,-250.0,6.802e-05,2]
[396567063,1765054235139,-500.0,6.802e-05,2]
[396567064,1765054235149,-500.0,6.802e-05,2]
[396567065,1765054235158,-500.0,6.802e-05,2]
[396567066,1765054235167,-2312.83697232,6.802e-05,2]
[396567067,1765054235177,-250.0,6.802e-05,2]
[396567068,1765054235186,-250.0,6.802e-05,2]
[396567069,1765054235195,-500.0,6.802e-05,2]
[396567070,1765054235204,-500.0,6.802e-05,2]
[396567071,1765054235215,-500.0,6.802e-05,2]
[396567072,1765054235224,-500.0,6.802e-05,2]
[396567073,1765054235234,-250.0,6.802e-05,2]
[396567074,1765054235244,-500.0,6.802e-05,2]
[396567075,1765054235254,-500.0,6.802e-05,2]
[396567076,1765054235264,-250.0,6.802e-05,2]
[396567077,1765054235273,-500.0,6.802e-05,2]
[396567078,1765054235282,-250.0,6.802e-05,2]
[396567079,1765054235291,-250.0,6.802e-05,2]
[396567080,1765054235300,-971.42888711,6.802e-05,2]
[396567081,1765054235309,-250.0,6.802e-05,2]
[396567082,1765054235318,-250.0,6.802e-05,2]
[396567083,1765054235332,-250.0,6.802e-05,2]
[396567084,1765054235341,-250.0,6.802e-05,2]
[396567085,1765054235351,-252.82840663,6.802e-05,2]
[396567086,1765054235360,-250.0,6.802e-05,2]
[396567087,1765054235369,-151.75418893,6.802e-05,2]
[396567088,1765054235378,-250.0,6.802e-05,2]
[396567089,1765054235387,-250.0,6.802e-05,2]
[396567090,1765054235396,-160.0,6.802e-05,2]
[396567091,1765054235405,-250.0,6.802e-05,2]
[396567092,1765054235414,-160.0,6.802e-05,2]
[396567093,1765054235423,-250.0,6.802e-05,2]
[396567094,1765054235432,-160.0,6.802e-05,2]
[396567095,1765054235440,-250.0,6.802e-05,2]
[396567096,1765054235450,-160.0,6.802e-05,2]
[396567097,1765054235459,-250.0,6.802e-05,2]
[396567098,1765054235468,-160.0,6.802e-05,2]
[396567099,1765054235477,-250.0,6.802e-05,2]
[396567100,1765054235487,-196.68267047,6.802e-05,2]
[396567101,1765054235495,-163.21704454,6.802e-05,2]
[396567102,1765054235504,-44837.62840764,6.806e-05,2]
[396567103,1765054235843,-466.02033106,6.806e-05,2]
[396567104,1765054236595,-159.33,6.806e-05,2]
[396567105,1765054236823,4802.95,6.732e-05,2]
[396567106,1765054237673,-288.35324789,6.732e-05,2]
[396567132,1765054238414,-557.13363298,6.732e-05,2]
[396567134,1765054238426,-333.71912776,6.732e-05,2]
[396567140,1765054238471,-338.84055212,6.732e-05,2]
[396567142,1765054238482,-890.15205145,6.732e-05,2]
[396567144,1765054238493,-281.00478041,6.732e-05,2]
[396567147,1765054238504,-755.54304337,6.732e-05,2]
[396567150,1765054238527,-4504.82779754,6.732e-05,2]
[396567152,1765054238536,-314.67220246,6.806e-05,2]
[396567154,1765054238548,-16844.9999999,6.806e-05,2]
[396567160,1765054238595,-30537.9915942,6.806e-05,2]
[396567162,1765054238605,-19470.29374046,6.806e-05,2]
[396567440,1765054241445,-3e-08,6.806e-05,2]
[396567442,1765054241456,-303.59,6.806e-05,2]
[396567446,1765054241483,-250.86269329,6.806e-05,2]
[396567448,1765054241494,-1023.59729684,6.806e-05,2]
[396567452,1765054241520,-143909.99840991,6.806e-05,2]
[396567601,1765054243660,-33401.85134745,6.806e-05,2]
[396567887,1765054246506,-1434.71368843,6.806e-05,2]
[396567888,1765054246667,-35654.80395575,6.806e-05,2]
[396567889,1765054246679,-305.00000001,6.806e-05,2]
[396568093,1765054259928,780.17987705,6.671e-05,2]
[396568094,1765054278501,731.51,6.6e-05,2]
[396568095,1765054281090,-300.0,6.737e-05,2]
[396568096,1765054281112,-125.33369741,6.737e-05,2]
[396568097,1765054292416,347.5,6.687e-05,2]
[396568098,1765054295153,-174.66630259,6.737e-05,2]
[396568099,1765054295176,-120.93343229,6.738e-05,2]
[396568100,1765054298447,-265.52929686,6.738e-05,2]
[396568101,1765054300575,-154.58447156,6.738e-05,2]
[396568102,1765054302086,-213.46961064,6.738e-05,2]
[396568103,1765054334654,8140.82012295,6.706e-05,2]
[396568104,1765054337914,-296.72483493,6.706e-05,2]
[396568105,1765054339679,-300.0,6.706e-05,2]
[396568106,1765054340173,632.35,6.6e-05,2]
[396568107,1765054365474,1783.85311394,6.638e-05,2]
[396568108,1765054372024,357.43,6.688e-05,2]
[396568109,1765054382904,-172.32017929,6.704e-05,2]
[396568110,1765054385167,-329.42693693,6.704e-05,2]
[396568111,1765054387683,-215.10551669,6.704e-05,2]
[396568112,1765054400437,818.15,6.6e-05,2]
[396568113,1765054444502,783.14736709,6.637e-05,2]
[396568114,1765054450900,352.88,6.689e-05,2]
[396568115,1765054460656,639.43,6.6e-05,2]
[396568116,1765054466671,1083.14736709,6.637e-05,2]
[396568117,1765054474650,4719.2833779,5.849e-05,2]
[396568118,1765054488834,1083.14736709,6.637e-05,2]
[396568119,1765054511221,300.0,6.636e-05,2]
[396568120,1765054516907,-300.0,6.703e-05,2]
[396568121,1765054519266,826.96,6.6e-05,2]
[396568122,1765054530790,352.2,6.67e-05,2]
[396568123,1765054533388,783.14736709,6.637e-05,2]
[396568124,1765054534374,-483.14736709,6.704e-05,2]
[396568125,1765054534403,-300.0,6.704e-05,2]
[396568126,1765054540948,6808.56982071,6.637e-05,2]
[396568127,1765054555979,1625.14544511,6.637e-05,2]
[396568128,1765054556005,10000.01,6.637e-05,2]
[396568129,1765054556031,10000.01,6.637e-05,2]
[396568130,1765054556056,10000.01,6.637e-05,2]
[396568131,1765054556082,10000.01,6.637e-05,2]
[396568132,1765054556122,15977.28409504,6.637e-05,2]
[396568133,1765054563653,8827.58448331,6.637e-05,2]
[396568134,1765054578817,640.58,6.6e-05,2]
[396568135,1765054579503,300.0,6.636e-05,2]
[396568136,1765054587793,300.0,6.636e-05,2]
[396568137,1765054597109,300.0,6.636e-05,2]
[396568138,1765054604438,300.0,6.636e-05,2]
[396568139,1765054612462,300.0,6.636e-05,2]
[396568140,1765054614643,363.08,6.675e-05,2]
[396568141,1765054620967,300.0,6.636e-05,2]
[396568142,1765054629198,600.0,6.635e-05,2]
[396568143,1765054637500,600.0,6.635e-05,2]
[396568144,1765054638592,880.18,6.6e-05,2]
[396568145,1765054645504,600.0,6.635e-05,2]
[396568146,1765054653221,600.0,6.635e-05,2]
[396568147,1765054661144,600.0,6.635e-05,2]
[396568148,1765054668854,600.0,6.635e-05,2]
[396568151,1765054676968,600.0,6.635e-05,2]
[396568160,1765054680860,212.2109806,2.889e-05,2]
[396568161,1765054685293,1500.0,6.635e-05,2]
[396568162,1765054693788,942.00920232,6.635e-05,2]
[396568163,1765054696405,358.46,6.677e-05,2]
[396568164,1765054698461,645.38,6.6e-05,2]
[396568165,1765054701980,1800.0,6.635e-05,2]
[396568167,1765054709948,1800.0,6.635e-05,2]
[396568168,1765054725584,1800.0,6.635e-05,2]
[396568169,1765054733322,1800.0,6.635e-05,2]
[396568170,1765054748158,300.0,6.634e-05,2]
[396568171,1765054758485,875.48,6.6e-05,2]
[396568172,1765054770351,300.0,6.634e-05,2]
[396568173,1765054776800,353.89,6.673e-05,2]
[396568174,1765054792972,300.0,6.634e-05,2]
[396568175,1765054815703,808.0,6.634e-05,2]
[396568176,1765054815757,200.0,5.753e-05,2]
[396568177,1765054818729,649.98,6.6e-05,2]
[396568178,1765054828380,160.0,5.8e-07,2]
[396568179,1765054828833,160.0,5.8e-07,2]
[396568180,1765054829854,160.0,5.8e-07,2]
[396568181,1765054830879,160.0,5.8e-07,2]
[396568182,1765054839677,808.0,6.634e-05,2]
[396568183,1765054857236,349.39,6.674e-05,2]
[396568184,1765054861960,808.0,6.634e-05,2]
[396568185,1765054862582,300.0,6.7e-05,2]
[396568186,1765054878442,870.97,6.6e-05,2]
[396568187,1765054885458,508.0,6.634e-05,2]
[396568188,1765054907884,508.0,6.634e-05,2]
[396568189,1765054922571,300.0,6.7e-05,2]
[396568190,1765054930668,508.0,6.634e-05,2]
[396568191,1765054938738,654.4,6.6e-05,2]
[396568192,1765054942007,344.94,6.67e-05,2]
[396568193,1765054954198,508.0,6.634e-05,2]
[396568194,1765054960751,-500.0,6.7e-05,2]
[396568195,1765054960781,-500.0,6.7e-05,2]
[396568196,1765054960811,-455.03279894,6.7e-05,2]
[396568197,1765054960845,-500.0,6.7e-05,2]
[396568198,1765054960882,-500.0,6.7e-05,2]
[396568199,1765054960915,-500.0,6.7e-05,2]
[396568200,1765054960947,-500.0,6.7e-05,2]
[396568201,1765054960981,-500.0,6.7e-05,2]
[396568202,1765054961012,-500.0,6.7e-05,2]
[396568203,1765054961047,-500.0,6.7e-05,2]
[396568204,1765054961468,-500.0,6.7e-05,2]
[396568205,1765054961503,-500.0,6.7e-05,2]
[396568206,1765054961539,-500.0,6.7e-05,2]
[396568207,1765054961570,-500.0,6.7e-05,2]
[396568208,1765054961604,-500.0,6.7e-05,2]
[396568209,1765054961635,-500.0,6.7e-05,2]
[396568210,1765054961668,-500.0,6.7e-05,2]
[396568211,1765054961704,-500.0,6.7e-05,2]
[396568212,1765054961737,-500.0,6.7e-05,2]
[396568213,1765054961769,-496.78937924,6.7e-05,2]
[396568214,1765054961864,-6.43124152,6.7e-05,2]
[396568215,1765054961902,-500.0,6.7e-05,2]
[396568216,1765054961935,-500.0,6.7e-05,2]
[396568217,1765054961974,-500.0,6.7e-05,2]
[396568218,1765054962009,-500.0,6.7e-05,2]
[396568219,1765054962043,-500.0,6.7e-05,2]
[396568220,1765054962081,-557.66141694,6.7e-05,2]
[396568221,1765054962115,-500.0,6.7e-05,2]
[396568222,1765054962153,-500.0,6.7e-05,2]
[396568223,1765054962187,-500.0,6.7e-05,2]
[396568224,1765054962226,-371.82468308,6.7e-05,2]
[396568225,1765054962314,-128.17531692,6.7e-05,2]
[396568226,1765054962354,-500.0,6.7e-05,2]
[396568227,1765054962390,-500.0,6.7e-05,2]
[396568228,1765054962428,-500.0,6.7e-05,2]
[396568229,1765054962462,-500.0,6.7e-05,2]
[396568230,1765054962499,-500.0,6.7e-05,2]
[396568231,1765054962558,-191.68291074,6.701e-05,2]
[396568232,1765054969817,500.0,6.7e-05,2]
[396568233,1765054969856,500.0,6.7e-05,2]
[396568234,1765054969920,747.96857036,6.7e-05,2]
[396568235,1765054969959,500.0,6.7e-05,2]
[396568236,1765054970008,500.0,6.7e-05,2]
[396568237,1765054970069,747.96857036,6.7e-05,2]
[396568238,1765054970112,500.0,6.7e-05,2]
[396568239,1765054970148,500.0,6.7e-05,2]
[396568240,1765054970212,247.72222544,6.7e-05,2]
[396568241,1765054970239,252.27777456,6.7e-05,2]
[396568242,1765054970279,747.96857036,6.7e-05,2]
[396568243,1765054970342,747.96857036,6.7e-05,2]
[396568244,1765054970387,500.0,6.7e-05,2]
[396568245,1765054970452,747.96857036,6.7e-05,2]
[396568246,1765054970516,539.97462436,6.7e-05,2]
[396568247,1765054970576,747.96857036,6.7e-05,2]
[396568248,1765054970695,747.96857036,6.7e-05,2]
[396568249,1765054970814,747.96857036,6.7e-05,2]
[396568250,1765054970892,747.96857036,6.7e-05,2]
[396568251,1765054970979,747.96857036,6.7e-05,2]
[396568252,1765054971053,747.96857036,6.7e-05,2]
[396568253,1765054971124,747.96857036,6.7e-05,2]
[396568254,1765054971198,747.96857036,6.7e-05,2]
[396568255,1765054971288,480.10332712,6.7e-05,2]
[396568256,1765054971325,267.86524324,6.7e-05,2]
[396568257,1765054971380,747.96857036,6.7e-05,2]
[396568258,1765054971462,747.96857036,6.7e-05,2]
[396568259,1765054971526,747.96857036,6.7e-05,2]
[396568260,1765054971590,747.96857036,6.7e-05,2]
[396568261,1765054971687,747.96857036,6.7e-05,2]
[396568262,1765054972068,747.96857036,6.7e-05,2]
[396568263,1765054972150,747.96857036,6.7e-05,2]
[396568264,1765054972218,747.96857036,6.7e-05,2]
[396568265,1765054972277,747.96857036,6.7e-05,2]
[396568266,1765054972362,747.96857036,6.7e-05,2]
[396568267,1765054972438,747.96857036,6.7e-05,2]
[396568268,1765054972515,747.96857036,6.7e-05,2]
[396568269,1765054972571,747.96857036,6.7e-05,2]
[396568270,1765054972692,8.55334208,6.7e-05,2]
[396568271,1765054972723,739.41522828,6.7e-05,2]
[396568272,1765054972783,747.96857036,6.7e-05,2]
[396568273,1765054972914,747.96857036,6.7e-05,2]
[396568274,1765054972962,747.96857036,6.7e-05,2]
[396568275,1765054973015,747.96857036,6.7e-05,2]
[396568276,1765054973067,747.96857036,6.7e-05,2]
[396568277,1765054973134,747.96857036,6.7e-05,2]
[396568278,1765054973196,747.96857036,6.7e-05,2]
[396568279,1765054973266,747.96857036,6.7e-05,2]
[396568280,1765054973307,747.96857036,6.7e-05,2]
[396568281,1765054974566,206.8461797,6.601e-05,2]
[396568282,1765054974933,2322.03145878,6.633e-05,2]
[396568283,1765054974963,7737.92260602,6.633e-05,2]
[396568284,1765054979219,-108.31708926,6.701e-05,2]
[396568285,1765054979242,-71.83091953,6.701e-05,2]
[396568286,1765054982736,316.31708926,6.634e-05,2]
[396568287,1765054999250,908.18,6.6e-05,2]
[396568288,1765055009816,-136.16908047,6.701e-05,2]
[396568289,1765055009846,-15.67091953,6.702e-05,2]
[396568290,1765055010929,663.99219298,6.7e-05,2]
[396568291,1765055011143,663.99219298,6.7e-05,2]
[396568292,1765055011522,663.99219298,6.7e-05,2]
[396568293,1765055011897,663.99219298,6.7e-05,2]
[396568294,1765055012411,-194.93,6.702e-05,2]
[396568295,1765055012713,663.99219298,6.7e-05,2]
[396568296,1765055012769,663.99219298,6.7e-05,2]
[396568297,1765055012836,663.99219298,6.7e-05,2]
[396568298,1765055012911,663.99219298,6.7e-05,2]
[396568299,1765055012970,663.99219298,6.7e-05,2]
[396568300,1765055013040,663.99219298,6.7e-05,2]
[396568301,1765055013117,663.99219298,6.7e-05,2]
[396568302,1765055013183,663.99219298,6.7e-05,2]
[396568303,1765055013268,663.99219298,6.7e-05,2]
[396568304,1765055013326,143.614402,6.7e-05,2]
[396568305,1765055014103,-155.67299573,6.7e-05,2]
[396568306,1765055016893,-154.99,6.7e-05,2]
[396568307,1765055018364,-209.71479525,6.7e-05,2]
[396568308,1765055018405,-663.99219298,6.7e-05,2]
[396568309,1765055018445,-663.99219298,6.7e-05,2]
[396568310,1765055018485,-663.99219298,6.7e-05,2]
[396568311,1765055018523,-663.99219298,6.7e-05,2]
[396568312,1765055018562,-663.99219298,6.7e-05,2]
[396568313,1765055018600,-663.99219298,6.7e-05,2]
[396568314,1765055018638,-663.99219298,6.7e-05,2]
[396568315,1765055019441,-663.99219298,6.7e-05,2]
[396568316,1765055019482,-663.99219298,6.7e-05,2]
[396568317,1765055019522,-663.99219298,6.7e-05,2]
[396568318,1765055019562,-663.99219298,6.7e-05,2]
[396568319,1765055019600,-663.99219298,6.7e-05,2]
[396568320,1765055019642,-663.99219298,6.7e-05,2]
[396568321,1765055019683,-663.99219298,6.7e-05,2]
[396568322,1765055019722,-40.1271053,6.7e-05,2]
[396568323,1765055019867,-623.86508768,6.7e-05,2]
[396568324,1765055019908,-663.99219298,6.7e-05,2]
[396568325,1765055019948,-663.99219298,6.7e-05,2]
[396568326,1765055019986,-663.99219298,6.7e-05,2]
[396568327,1765055020023,-663.99219298,6.7e-05,2]
[396568328,1765055020059,-663.99219298,6.7e-05,2]
[396568329,1765055020095,-663.99219298,6.7e-05,2]
[396568330,1765055020135,-120.3813159,6.7e-05,2]
[396568331,1765055021614,357.74,6.68e-05,2]
[396568332,1765055021739,-152.7,6.7e-05,2]
[396568333,1765055023639,-170.93,6.7e-05,2]
[396568334,1765055025520,-219.98087708,6.7e-05,2]
[396568335,1765055025558,-663.99219298,6.7e-05,2]
[396568336,1765055025594,-663.99219298,6.7e-05,2]
[396568337,1765055025631,-663.99219298,6.7e-05,2]
[396568338,1765055025670,-663.99219298,6.7e-05,2]
[396568339,1765055025717,-663.99219298,6.7e-05,2]
[396568340,1765055025762,-663.99219298,6.7e-05,2]
[396568341,1765055025802,-663.99219298,6.7e-05,2]
[396568342,1765055026551,-169.05701965,6.702e-05,2]
[396568343,1765055026573,-51.91133016,6.702e-05,2]
[396568344,1765055028347,264.15754412,6.633e-05,2]
[396568345,1765055028381,469.57132028,6.633e-05,2]
[396568346,1765055029026,-500.0,6.702e-05,2]
[396568347,1765055031201,-151.87165019,6.702e-05,2]
[396568348,1765055034536,-213.55627969,6.702e-05,2]
[396568349,1765055034560,-33.87810356,6.702e-05,2]
[396568350,1765055036643,-468.18209299,6.702e-05,2]
[396568351,1765055038193,-434.36728453,6.7e-05,2]
[396568352,1765055040828,-87.73560067,6.7e-05,2]
[396568353,1765055040858,-145.22201605,6.7e-05,2]
[396568354,1765055043105,-300.0,6.7e-05,2]
[396568355,1765055045864,-76.88086915,6.7e-05,2]
[396568356,1765055045895,-275.27572614,6.7e-05,2]
[396568357,1765055048528,-246.82715906,6.7e-05,2]
[396568358,1765055048563,-52.63119075,6.702e-05,2]
[396568359,1765055055012,-300.0,6.7e-05,2]
[396568360,1765055059107,-58.57871152,6.702e-05,2]
[396568361,1765055059132,-241.23703564,6.705e-05,2]
[396568362,1765055061312,-174.27929332,6.705e-05,2]
[396568363,1765055062819,-288.37092348,6.705e-05,2]
[396568364,1765055063492,659.78,6.6e-05,2]
[396568365,1765055068818,-235.64247959,6.705e-05,2]
[396568366,1765055070889,-211.0,6.705e-05,2]
[396568367,1765055072247,151.33,6.638e-05,2]
[396568368,1765055073173,-49.47026797,6.705e-05,2]
[396568369,1765055073202,-169.63592332,6.706e-05,2]
[396568370,1765055074702,-155.48290866,6.706e-05,2]
[396568371,1765055076969,-216.58187174,6.706e-05,2]
[396568372,1765055076997,-97.39569426,6.706e-05,2]
[396568373,1765055080361,-243.47442441,6.706e-05,2]
[396568374,1765055082160,-151.97,6.706e-05,2]
[396568375,1765055086206,9188.9,6.085e-05,2]
[396568376,1765055086235,1174.7056799,6.085e-05,2]
[396568377,1765055095108,395.44442441,6.639e-05,2]
[396568378,1765055102237,353.18,6.675e-05,2]
[396568379,1765055108594,-300.0,6.705e-05,2]
[396568380,1765055114539,-8844.62470304,6.706e-05,2]
[396568381,1765055114584,-10000.01,6.706e-05,2]
[396568382,1765055114678,-10000.01,6.706e-05,2]
[396568383,1765055114798,-10000.01,6.706e-05,2]
[396568384,1765055115070,-10000.01,6.706e-05,2]